fUST/lending_fUST_20250306
["ID","MTS","AMOUNT","RATE_DAILY","PERIOD"]
[355497651,1741205449964,-153.49,0.000443,36]
[355497652,1741205449973,-153.49,0.000443,36]
[355497654,1741205449984,-153.49,0.000443,36]
[355497657,1741205449993,-153.49,0.000443,36]
[355497659,1741205450003,-153.49,0.000443,36]
[355497661,1741205450013,-153.49,0.000443,36]
[355497663,1741205450022,-153.49,0.000443,36]
[355497665,1741205450032,-159.807271,0.00044383,120]
[355497667,1741205450041,-1174.38,0.00044383,120]
[355497669,1741205450051,-1070.34,0.00044383,120]
[355497671,1741205450060,-500.0,0.00044383,120]
[355497673,1741205450070,-2254.44,0.00044383,120]
[355497675,1741205450079,-1134.16,0.00044383,120]
[355497677,1741205450089,-14455.61,0.00044383,7]
[355497679,1741205450098,-801.84,0.00044383,120]
[355497681,1741205450108,-549.64,0.00044383,120]
[355497683,1741205450118,-868.05,0.00044383,120]
[355497685,1741205450127,-3387.34,0.00044383,30]
[355497687,1741205450137,-501.51,0.00044383,120]
[355497689,1741205450146,-1212.16,0.00044383,120]
[355497691,1741205450155,-2103.1,0.00044383,120]
[355497693,1741205450165,-525.15,0.00044383,120]
[355497695,1741205450174,-985.2,0.00044383,120]
[355497697,1741205450187,-200.0,0.000444,120]
[355497700,1741205450197,-251.77,0.000444,30]
[355497702,1741205450207,-1218.82361087,0.00044439,28]
[355497704,1741205450216,-1000.0,0.00044452,10]
[355497705,1741205450226,-538.46338523,0.00044452,10]
[355497707,1741205450235,-150.0,0.00044499,14]
[355497709,1741205450245,-282.7816628,0.00044499,14]
[355497712,1741205450255,-385.42,0.000445,30]
[355497714,1741205450264,-361.46,0.000445,30]
[355497716,1741205450274,-461.1316622,0.00044548,30]
[355497718,1741205450283,-1588.96,0.000446,30]
[355497720,1741205450292,-1174.49865964,0.00044657,120]
[355497722,1741205450302,-1070.40524935,0.00044657,120]
[355497724,1741205450311,-352.17882302,0.00044657,120]
[355497726,1741205450320,-2254.54576598,0.00044657,120]
[355497728,1741205450329,-1134.20729229,0.00044657,120]
[355497730,1741205450339,-14455.75786442,0.00044657,7]
[355497732,1741205450349,-802.07456849,0.00044657,120]
[355497734,1741205450358,-549.87301385,0.00044657,120]
[355497736,1741205450367,-868.21719003,0.00044657,120]
[355497738,1741205450377,-3387.38734323,0.00044657,30]
[355497740,1741205450386,-501.6771181,0.00044657,120]
[355497742,1741205450395,-1212.32955761,0.00044657,120]
[355497744,1741205450405,-2103.31044607,0.00044657,120]
[355497746,1741205450414,-525.23331058,0.00044657,120]
[355497748,1741205450423,-985.3387076,0.00044657,120]
[355497750,1741205450435,-673.26,0.000448,30]
[355497752,1741205450445,-245.93418809,0.000449,25]
[355497754,1741205450455,-153.0,0.00044904,30]
[355497756,1741205450464,-162.88,0.00044922,30]
[355497758,1741205450473,-1220.81949647,0.00044949,52]
[355497760,1741205450483,-251.54133871,0.00045,15]
[355497762,1741205450493,-399.0,0.00045,120]
[355497764,1741205450502,-1039.63470295,0.00045,120]
[355497766,1741205450512,-150.0,0.00045,120]
[355497768,1741205450521,-150.0,0.00045,120]
[355497770,1741205450531,-4168.09,0.000455,30]
[355497772,1741205450541,-153.0,0.00045699,30]
[355497774,1741205450551,-153.0,0.00045699,30]
[355497776,1741205450560,-6435.0,0.000457,120]
[355497779,1741205450570,-300.0,0.000457,24]
[355497780,1741205450579,-590.69421,0.000458,120]
[355497782,1741205450589,-251.77,0.000458,30]
[355497784,1741205450599,-295.35831249,0.000458,120]
[355497786,1741205450608,-1000.0,0.00045808,10]
[355497788,1741205450618,-1588.96,0.000459,30]
[355497790,1741205450627,-385.42,0.000459,30]
[355497792,1741205450637,-361.46,0.000459,30]
[355497794,1741205450647,-160.0,0.00045904,5]
[355497796,1741205450656,-1000.0,0.00045945,10]
[355497798,1741205450665,-10000.0,0.00046,2]
[355497800,1741205450675,-3780.0,0.00046,120]
[355497802,1741205450686,-1000.0,0.00046082,10]
[355497804,1741205450696,-153.49,0.000461,39]
[355497806,1741205450705,-153.49,0.000461,39]
[355497808,1741205450715,-153.49,0.000461,39]
[355497810,1741205450724,-153.49,0.000461,39]
[355497812,1741205450733,-153.49,0.000461,39]
[355497814,1741205450743,-153.49,0.000461,39]
[355497816,1741205450752,-153.49,0.000461,39]
[355497818,1741205450762,-153.49,0.000461,39]
[355497820,1741205450772,-153.49,0.000461,39]
[355497822,1741205450782,-153.49,0.000461,39]
[355497825,1741205450792,-153.49,0.000461,39]
[355497826,1741205450801,-153.49,0.000461,39]
[355497828,1741205450811,-172.7727069,0.0004611,120]
[355497831,1741205450820,-153.0,0.00046192,30]
[355497832,1741205450830,-618.014595,0.000462,90]
[355497834,1741205450839,-1000.0,0.00046219,10]
[355497836,1741205450848,-162.88,0.00046292,30]
[355497838,1741205450857,-500.0,0.000463,91]
[355497840,1741205450867,-1000.0,0.00046356,10]
[355497842,1741205450876,-306.0,0.00046396,30]
[355497844,1741205450886,-673.26,0.000464,30]
[355497846,1741205450895,-500.0,0.000464,92]
[355497848,1741205450905,-171.837568,0.00046452,90]
[355497850,1741205450914,-1000.0,0.00046493,10]
[355497852,1741205450926,-500.0,0.000465,92]
[355497855,1741205450937,-389.065826,0.00046532,2]
[355497857,1741205450945,-150.0,0.00046575,10]
[355497859,1741205450954,-4168.09,0.000466,30]
[355497861,1741205450963,-172.7727069,0.00046603,120]
[355497876,1741205451096,-1000.0,0.0004663,10]
[355497878,1741205451106,-500.0,0.00046733,93]
[355497880,1741205451116,-1577.39638445,0.000468,60]
[355497882,1741205451126,-500.0,0.00046833,93]
[355497884,1741205451136,-500.0,0.00046933,94]
[355497886,1741205451146,-1588.96,0.00047,30]
[355497888,1741205451156,-251.77,0.00047,30]
[355497890,1741205451166,-168.0,0.00047,90]
[355497892,1741205451175,-151.0,0.00047033,120]
[355497894,1741205451187,-151.0,0.00047033,120]
[355497896,1741205451196,-151.0,0.00047033,120]
[355497898,1741205451207,-500.0,0.00047033,90]
[355497900,1741205451217,-200.0,0.00047093,120]
[355497902,1741205451226,-172.7727069,0.00047096,120]
[355497904,1741205451237,-385.42,0.000471,30]
[355497906,1741205451247,-361.46,0.000471,30]
[355497908,1741205451256,-250.0,0.00047123,10]
[355497911,1741205451266,-500.0,0.00047133,94]
[355497913,1741205451276,-300.0,0.000472,25]
[355497915,1741205451285,-500.0,0.00047233,96]
[355497917,1741205451295,-200.0,0.00047245,120]
[355497918,1741205451304,-500.0,0.00047333,90]
[355497921,1741205451314,-558.334779,0.0004737,30]
[355497923,1741205451324,-600.0,0.00047391,2]
[355497924,1741205451333,-500.0,0.00047433,96]
[355497927,1741205451343,-363.29,0.000475,30]
[355497929,1741205451353,-363.3,0.000475,30]
[355497931,1741205451363,-1218.82361087,0.00047531,28]
[355497933,1741205451373,-500.0,0.00047533,99]
[355497935,1741205451382,-172.7727069,0.00047589,120]
[355497937,1741205451392,-673.26,0.000476,30]
[355497939,1741205451401,-500.0,0.00047633,100]
[355497941,1741205451411,-162.88,0.00047662,30]
[355497943,1741205451421,-452.35622534,0.00047671,10]
[355497945,1741205451431,-4168.09,0.000477,30]
[355497947,1741205451440,-500.0,0.00047733,90]
[355497949,1741205451449,-6445.64802978,0.000478,2]
[355497951,1741205451459,-500.0,0.00047833,100]
[355497953,1741205451468,-200.0,0.00047862,120]
[355497955,1741205451478,-600.0,0.00047885,2]
[355497957,1741205451487,-148065.81413448,0.000479,120]
[355497959,1741205451498,-151.0,0.000479,120]
[355497961,1741205451507,-281.123488,0.000479,120]
[355497963,1741205451518,-151.0,0.000479,120]
[355497965,1741205451527,-253.902956,0.000479,120]
[355497967,1741205451536,-159.428086,0.000479,120]
[355497969,1741205451545,-151.0,0.000479,120]
[355497971,1741205451555,-151.0,0.000479,120]
[355497973,1741205451564,-151.0,0.000479,120]
[355497975,1741205451574,-151.0,0.000479,14]
[355497977,1741205451583,-363.653607,0.000479,120]
[355497979,1741205451593,-181.99504,0.000479,14]
[355497981,1741205451603,-363.653607,0.000479,120]
[355497983,1741205451617,-151.0,0.000479,120]
[355497986,1741205451627,-153.49,0.000479,42]
[355497988,1741205451636,-153.49,0.000479,42]
[355497990,1741205451647,-153.49,0.000479,42]
[355497992,1741205451657,-153.49,0.000479,42]
[355497994,1741205451666,-153.49,0.000479,42]
[355497996,1741205451676,-153.49,0.000479,42]
[355497998,1741205451687,-153.49,0.000479,42]
[355498000,1741205451696,-153.49,0.000479,42]
[355498002,1741205451708,-153.49,0.000479,42]
[355498004,1741205451718,-153.49,0.000479,42]
[355498006,1741205451728,-153.49,0.000479,42]
[355498008,1741205451737,-153.49,0.000479,42]
[355498010,1741205451747,-1000.0,0.00047917,120]
[355498013,1741205451757,-1000.0,0.00047917,120]
[355498014,1741205451766,-1000.0,0.00047917,120]
[355498017,1741205451776,-1000.0,0.00047917,120]
[355498019,1741205451786,-151.0,0.00047917,120]
[355498021,1741205451795,-151.0,0.00047917,120]
[355498023,1741205451805,-151.0,0.00047917,120]
[355498025,1741205451814,-500.0,0.00047933,99]
[355498027,1741205451824,-200.0,0.00047991,120]
[355498028,1741205451833,-711159.64552848,0.00048,2]
[355498037,1741205451907,-288840.35447152,0.00048,2]
[355498039,1741205451917,-1007.75100876,0.00048,2]
[355498041,1741205451931,-590.69421,0.00048,120]
[355498043,1741205451940,-2900.098599,0.00048,120]
[355498045,1741205451950,-1000.0,0.00048,120]
[355498047,1741205451962,-5510.51836468,0.00048,120]
[355498061,1741205452080,-500.0,0.00038356,9]
[355498063,1741205452090,-500.0,0.00039726,9]
[355498065,1741205452100,-500.0,0.0004,9]
[355498067,1741205452109,-500.0,0.00040273,9]
[355498069,1741205452119,-500.0,0.00040547,9]
[355498071,1741205452128,-151.0,0.00040821,14]
[355498073,1741205452138,-500.0,0.00040821,9]
[355498075,1741205452147,-500.0,0.00041095,120]
[355498077,1741205452156,-500.0,0.00041369,120]
[355498079,1741205452166,-500.0,0.00041643,120]
[355498081,1741205452175,-500.0,0.00041917,120]
[355498083,1741205452185,-151.0,0.00042191,120]
[355498085,1741205452195,-158.776775,0.0004299,120]
[355498087,1741205452204,-23489.48163532,0.00048,120]
[355498088,1741205452215,-3780.0,0.00048,120]
[355498091,1741205452224,-1100.20687379,0.00048,120]
[355498093,1741205452233,-150.0,0.00048,120]
[355498095,1741205452243,-150.0,0.00048,120]
[355498096,1741205452252,-3758.92356847,0.00048,3]
[355498099,1741205452262,-151.0,0.00048,120]
[355498101,1741205452272,-151.0,0.00048,120]
[355498103,1741205452282,-151.0,0.00048,120]
[355498105,1741205452291,-151.0,0.00048,120]
[355498107,1741205452301,-151.0,0.00048,120]
[355498109,1741205452310,-151.0,0.00048,14]
[355498111,1741205452320,-363.653607,0.00048,120]
[355498113,1741205452330,-363.653607,0.00048,120]
[355498115,1741205452339,-151.0,0.00048,120]
[355498117,1741205452349,-151.0,0.00048,120]
[355498119,1741205452358,-151.0,0.00048,120]
[355498121,1741205452368,-151.0,0.00048,120]
[355498123,1741205452378,-500.0,0.00048033,96]
[355498125,1741205452387,-172.7727069,0.00048082,120]
[355498127,1741205452397,-1588.96,0.000481,30]
[355498129,1741205452406,-500.0,0.00048133,98]
[355498131,1741205452416,-393.09728038,0.00048182,120]
[355498133,1741205452426,-251.77,0.000482,30]
[355498135,1741205452437,-156.593922,0.000482,90]
[355498137,1741205452446,-500.0,0.00048233,93]
[355498139,1741205452456,-200.0,0.00048261,120]
[355498141,1741205452466,-160.0,0.00048284,6]
[355498143,1741205452475,-200.0,0.00048289,120]
[355498145,1741205452485,-385.42,0.000483,30]
[355498147,1741205452495,-361.46,0.000483,30]
[355498149,1741205452504,-200.0,0.00048312,120]
[355498151,1741205452515,-500.36218104,0.00048329,10]
[355498153,1741205452524,-500.0,0.00048333,95]
[355498155,1741205452534,-600.0,0.00048379,2]
[355498157,1741205452545,-512.3656193,0.000484,120]
[355498159,1741205452554,-150.0,0.000484,10]
[355498161,1741205452564,-500.0,0.00048433,95]
[355498163,1741205452574,-200.0,0.00048486,120]
[355498165,1741205452584,-888.0,0.00048493,30]
[355498167,1741205452593,-888.0,0.00048493,30]
[355498170,1741205452603,-888.0,0.00048493,30]
[355498172,1741205452613,-888.0,0.00048493,30]
[355498174,1741205452622,-888.0,0.00048493,30]
[355498176,1741205452632,-888.0,0.00048493,30]
[355498177,1741205452642,-888.0,0.00048493,30]
[355498179,1741205452651,-888.0,0.00048493,30]
[355498182,1741205452661,-262.8214244,0.00048493,30]
[355498184,1741205452677,-65170.227487,0.000485,15]
[355498186,1741205452689,-38652.05472711,0.000485,30]
[355498201,1741205452828,-500.0,0.00038356,9]
[355498203,1741205452838,-154.120218,0.00040821,14]
[355498205,1741205452847,-500.0,0.00042191,120]
[355498207,1741205452856,-500.0,0.00042465,120]
[355498209,1741205452866,-500.0,0.00042739,120]
[355498211,1741205452875,-500.0,0.00043013,120]
[355498212,1741205452885,-500.0,0.00043287,120]
[355498214,1741205452895,-500.0,0.00043561,120]
[355498216,1741205452904,-500.0,0.00043835,120]
[355498218,1741205452918,-500.0,0.00044109,120]
[355498220,1741205452928,-645.85151662,0.00044383,120]
[355498222,1741205452939,-7482.02827123,0.000485,30]
[355498224,1741205452950,-1657.5000003,0.000485,30]
[355498226,1741205452962,-480.14999999,0.000485,30]
[355498229,1741205452974,-1728.26700137,0.000485,30]
[355498231,1741205452983,-363.29,0.000485,30]
[355498233,1741205452993,-151.0,0.000485,120]
[355498235,1741205453002,-151.0,0.000485,120]
[355498237,1741205453014,-151.0,0.000485,120]
[355498239,1741205453024,-151.0,0.000485,120]
[355498241,1741205453034,-151.0,0.000485,120]
[355498243,1741205453044,-151.0,0.000485,14]
[355498245,1741205453054,-363.653607,0.000485,120]
[355498246,1741205453065,-238.78939013,0.000485,120]
[355498252,1741205453115,-124.86421687,0.000485,120]
[355498254,1741205453126,-151.0,0.000485,120]
[355498256,1741205453136,-151.0,0.000485,120]
[355498258,1741205453146,-151.0,0.000485,120]
[355498260,1741205453155,-7.29506888,0.000485,120]
[355500754,1741206631835,-203.2352261,0.000333,2]
[355500755,1741206631845,-491.14644542,0.000349,2]
[355500756,1741206631857,-273.41251941,0.000349,2]
[355500757,1741206631866,-1078.22588754,0.00034927,2]
[355500758,1741206632004,-1547.40790783,0.00034927,2]
[355500759,1741206632013,-500.0,0.00034973,5]
[355500760,1741206632023,-500.0,0.00034973,5]
[355500761,1741206632033,-400.0,0.00034999,2]
[355500762,1741206632042,-69884.40275853,0.00035,2]
[355500772,1741206637721,-901.5443538,0.00035,2]
[355500773,1741206637731,-165.35254315,0.00035,2]
[355500774,1741206637740,-170.146869,0.00035027,2]
[355500775,1741206637749,-512.21682908,0.00035447,7]
[355500776,1741206637758,-292.18643905,0.00035447,7]
[355500777,1741206637783,-235.69465969,0.00035447,7]
[355500778,1741206637793,-500.0,0.00035447,2]
[355500779,1741206637801,-500.0,0.00035447,2]
[355500780,1741206637811,-240.55369835,0.00035447,2]
[355500781,1741206637820,-24900.0,0.00035448,2]
[355500782,1741206637830,-191.679448,0.00035725,120]
[355500783,1741206637840,-355.705952,0.0003589,2]
[355500784,1741206637849,-869.25115655,0.000359,7]
[355500785,1741206637858,-2960.0,0.0003596,2]
[355500786,1741206637868,-686.71033131,0.00036,2]
[355500787,1741206637877,-188.62643232,0.000362,98]
[355500788,1741206637887,-560.0,0.00037527,2]
[355500789,1741206637896,-198.0314143,0.00038156,2]
[355500790,1741206637905,-222.14483272,0.000382,2]
[355500791,1741206637917,-236.76762846,0.00038233,2]
[355500792,1741206637926,-500.0,0.00038255,15]
[355500793,1741206637936,-500.0,0.00038255,15]
[355500794,1741206637945,-500.0,0.00038255,15]
[355500795,1741206637954,-331.40516629,0.00038255,15]
[355500796,1741206637963,-389.58273794,0.00038255,15]
[355500797,1741206637974,-184.09,0.00038255,2]
[355500798,1741206637984,-184.66850652,0.00038255,120]
[355500811,1741206640041,-552.89955032,0.00038255,120]
[355500813,1741206640050,-157092.48325869,0.00038256,2]
[355500815,1741206640061,-45014.0,0.00038256,2]
[355500817,1741206640076,-2768.56539217,0.00038256,2]
[355500820,1741206640087,-380.36253887,0.00038256,2]
[355500826,1741206640138,-290.26557596,0.00038256,2]
[355501360,1741206645851,-1900.74248726,0.00038256,2]
[355501361,1741206645863,-3300.0,0.00038256,2]
[355502042,1741207832269,-419.798528,0.0003456,2]
[355502043,1741207832278,-400.0,0.00034955,2]
[355502044,1741207832287,-17172.5456759,0.00034956,2]
[355502045,1741207832297,-500.0,0.00035,5]
[355502047,1741207832306,-500.0,0.00035,5]
[355502049,1741207832315,-500.0,0.00035,5]
[355502051,1741207832324,-500.0,0.00035,5]
[355502053,1741207832334,-302.20059007,0.00035,5]
[355502055,1741207832343,-576.90571469,0.00035,5]
[355502057,1741207832352,-200.86626193,0.00035,5]
[355502059,1741207832362,-500.0,0.00035,5]
[355502061,1741207832371,-170.146869,0.00035281,2]
[355502063,1741207832381,-358.234473,0.0003589,2]
[355502065,1741207832391,-501.5318523,0.00036156,2]
[355502067,1741207832400,-313.0,0.00037481,2]
[355502069,1741207832409,-1257.7129034,0.00038,2]
[355502071,1741207832419,-27948.49824675,0.000381,3]
[355502074,1741207832435,-926.7001,0.000381,3]
[355502122,1741207837838,-328.82134724,0.000381,3]
[355502124,1741207837848,-160.0,0.000381,3]
[355502126,1741207837858,-500.0,0.00038155,15]
[355502128,1741207837867,-500.0,0.00038155,15]
[355502129,1741207837877,-500.0,0.00038155,15]
[355502132,1741207837891,-500.0,0.00038155,15]
[355502134,1741207837903,-500.0,0.00038155,15]
[355502137,1741207837916,-500.0,0.00038155,15]
[355502139,1741207837928,-296.67016494,0.00038155,15]
[355502141,1741207837940,-500.0,0.00038155,15]
[355502143,1741207837952,-500.0,0.00038155,15]
[355502146,1741207837964,-500.0,0.00038155,15]
[355502148,1741207837975,-500.0,0.00038155,15]
[355502150,1741207837984,-500.0,0.00038155,15]
[355502152,1741207837995,-500.0,0.00038155,15]
[355502154,1741207838008,-500.0,0.00038155,15]
[355502156,1741207838020,-500.0,0.00038155,15]
[355502159,1741207838030,-500.0,0.00038155,15]
[355502161,1741207838042,-500.0,0.00038155,15]
[355502163,1741207838053,-500.0,0.00038155,15]
[355502165,1741207838065,-500.0,0.00038155,15]
[355502168,1741207838077,-500.0,0.00038155,15]
[355502170,1741207838089,-500.0,0.00038155,15]
[355502172,1741207838101,-500.0,0.00038155,15]
[355502174,1741207838112,-500.0,0.00038155,15]
[355502177,1741207838124,-500.0,0.00038155,15]
[355502179,1741207838137,-500.0,0.00038155,15]
[355502181,1741207838150,-500.0,0.00038155,15]
[355502183,1741207838161,-500.0,0.00038155,15]
[355502186,1741207838172,-500.0,0.00038155,15]
[355502188,1741207838183,-500.0,0.00038155,15]
[355502190,1741207838194,-500.0,0.00038155,15]
[355502192,1741207838205,-500.0,0.00038155,15]
[355502194,1741207838217,-500.0,0.00038155,15]
[355502197,1741207838227,-500.0,0.00038155,15]
[355502199,1741207838238,-500.0,0.00038155,15]
[355502201,1741207838249,-500.0,0.00038155,15]
[355502203,1741207838262,-500.0,0.00038155,15]
[355502205,1741207838273,-500.0,0.00038155,15]
[355502208,1741207838285,-650.0,0.00038155,15]
[355502210,1741207838295,-500.0,0.00038155,15]
[355502212,1741207838306,-500.0,0.00038155,15]
[355502214,1741207838316,-511.80273244,0.00038155,15]
[355502216,1741207838326,-222000.0,0.00038156,2]
[355502218,1741207838336,-503.79416774,0.00038173,5]
[355502220,1741207838346,-216.89,0.00038255,2]
[355502222,1741207838356,-269.3,0.000383,30]
[355502225,1741207838367,-155.7,0.000383,30]
[355502227,1741207838378,-581.9836164,0.00038355,15]
[355502229,1741207838388,-500.0,0.00038355,15]
[355502231,1741207838399,-472.70791656,0.00038355,15]
[355502233,1741207838410,-384.58835162,0.00038355,15]
[355502235,1741207838421,-550.879326,0.00038355,15]
[355502237,1741207838431,-5905.50045829,0.00038355,5]
[355502240,1741207838443,-35857.13622339,0.00038356,5]
[355502242,1741207838454,-500.0,0.00038356,9]
[355502244,1741207838465,-500.0,0.00038356,9]
[355502246,1741207838476,-500.0,0.00038356,9]
[355502249,1741207838488,-502.34286117,0.00038356,9]
[355502251,1741207838500,-500.0,0.00038356,9]
[355502253,1741207838511,-500.0,0.00038356,9]
[355502255,1741207838523,-500.0,0.00038356,9]
[355502257,1741207838535,-500.0,0.00038356,9]
[355502260,1741207838546,-500.0,0.00038356,9]
[355502262,1741207838558,-397.740689,0.00038356,9]
[355502264,1741207838568,-500.0,0.00038356,9]
[355502266,1741207838578,-500.0,0.00038356,9]
[355502268,1741207838587,-500.0,0.00038356,9]
[355502270,1741207838597,-628.05162628,0.00038356,9]
[355502272,1741207838607,-500.0,0.00038356,9]
[355502274,1741207838618,-500.0,0.00038356,9]
[355502276,1741207838629,-500.0,0.00038356,9]
[355502279,1741207838640,-500.0,0.00038356,9]
[355502281,1741207838653,-566.15,0.00038356,9]
[355502283,1741207838664,-500.0,0.00038356,9]
[355502285,1741207838676,-500.0,0.00038356,9]
[355502287,1741207838687,-500.0,0.00038356,9]
[355502289,1741207838697,-500.0,0.00038356,9]
[355502291,1741207838706,-500.0,0.00038356,9]
[355502294,1741207838718,-500.0,0.00038356,9]
[355502296,1741207838728,-500.0,0.00038356,9]
[355502298,1741207838741,-500.0,0.00038356,9]
[355502300,1741207838753,-500.0,0.00038356,9]
[355502302,1741207838764,-500.0,0.00038356,9]
[355502304,1741207838775,-500.0,0.00038356,9]
[355502306,1741207838785,-500.0,0.00038356,9]
[355502308,1741207838796,-500.0,0.00038356,9]
[355502311,1741207838806,-500.0,0.00038356,9]
[355502313,1741207838817,-500.0,0.00038356,9]
[355502315,1741207838827,-500.0,0.00038356,9]
[355502317,1741207838837,-500.0,0.00038356,9]
[355502319,1741207838848,-500.0,0.00038356,9]
[355502321,1741207838858,-500.0,0.00038356,9]
[355502323,1741207838868,-500.0,0.00038356,9]
[355502325,1741207838878,-500.0,0.00038356,9]
[355502327,1741207838888,-500.0,0.00038356,9]
[355502329,1741207838899,-500.0,0.00038356,9]
[355502332,1741207838910,-500.0,0.00038356,9]
[355502334,1741207838920,-503.53346243,0.00038356,7]
[355502336,1741207838931,-636.71217791,0.00038356,9]
[355502338,1741207838941,-500.0,0.00038356,9]
[355502340,1741207838952,-500.0,0.00038356,9]
[355502342,1741207838961,-500.0,0.00038356,9]
[355502344,1741207838971,-500.0,0.00038356,9]
[355502346,1741207838982,-500.0,0.00038356,9]
[355502348,1741207838992,-500.0,0.00038356,9]
[355502350,1741207839001,-500.0,0.00038356,9]
[355502352,1741207839011,-500.0,0.00038356,9]
[355502354,1741207839022,-500.0,0.00038356,9]
[355502356,1741207839032,-500.0,0.00038356,9]
[355502358,1741207839043,-500.0,0.00038356,9]
[355502361,1741207839053,-500.0,0.00038356,9]
[355502363,1741207839063,-500.0,0.00038356,9]
[355502365,1741207839074,-500.0,0.00038356,9]
[355502367,1741207839084,-500.0,0.00038356,9]
[355502369,1741207839095,-500.0,0.00038356,9]
[355502371,1741207839105,-500.0,0.00038356,9]
[355502373,1741207839116,-500.0,0.00038356,9]
[355502375,1741207839126,-500.0,0.00038356,9]
[355502377,1741207839136,-500.0,0.00038356,9]
[355502379,1741207839147,-500.0,0.00038356,9]
[355502382,1741207839157,-500.0,0.00038356,9]
[355502384,1741207839167,-251.96,0.00038356,9]
[355502386,1741207839178,-500.0,0.00038356,9]
[355502388,1741207839188,-500.0,0.00038356,9]
[355502390,1741207839199,-500.0,0.00038356,9]
[355502392,1741207839210,-500.0,0.00038356,9]
[355502394,1741207839220,-500.0,0.00038356,9]
[355502396,1741207839230,-500.0,0.00038356,9]
[355502398,1741207839240,-500.0,0.00038356,9]
[355502401,1741207839251,-500.0,0.00038356,9]
[355502403,1741207839263,-500.0,0.00038356,9]
[355502405,1741207839272,-500.0,0.00038356,9]
[355502407,1741207839282,-500.0,0.00038356,9]
[355502409,1741207839292,-500.0,0.00038356,9]
[355502411,1741207839303,-500.0,0.00038356,9]
[355502413,1741207839314,-500.0,0.00038356,9]
[355502415,1741207839324,-500.0,0.00038356,9]
[355502417,1741207839335,-500.0,0.00038356,9]
[355502419,1741207839346,-500.0,0.00038356,9]
[355502423,1741207839357,-500.0,0.00038356,9]
[355502425,1741207839367,-500.0,0.00038356,9]
[355502427,1741207839377,-500.0,0.00038356,9]
[355502429,1741207839387,-500.0,0.00038356,9]
[355502431,1741207839398,-550.5,0.00038356,9]
[355502433,1741207839408,-500.0,0.00038356,9]
[355502435,1741207839419,-500.0,0.00038356,9]
[355502437,1741207839429,-500.0,0.00038356,9]
[355502439,1741207839439,-500.0,0.00038356,9]
[355502441,1741207839450,-500.0,0.00038356,9]
[355502443,1741207839460,-500.0,0.00038356,9]
[355502445,1741207839470,-500.0,0.00038356,9]
[355502447,1741207839481,-500.0,0.00038356,9]
[355502449,1741207839491,-500.0,0.00038356,9]
[355502451,1741207839502,-500.0,0.00038356,9]
[355502454,1741207839513,-500.0,0.00038356,9]
[355502456,1741207839525,-500.0,0.00038356,9]
[355502458,1741207839535,-500.0,0.00038356,9]
[355502461,1741207839545,-500.0,0.00038356,9]